[Event "Titled Tuesday Blitz November 08 Early 2022"]
[White "Tate, Alan"]
[Black "Winkels, Marcel"]
[WhiteFideId "2401878"]
[BlackFideId "1003887"]
[WhiteElo "2179"]
[BlackElo "1900"]
[Result "1-0"]
[Round "07"]
[TimeControl "180+1"]
[Date "2022.11.09"]
[WhiteClock "0:00:03"]
[BlackClock "0:00:07"]

1. e4 {[%clk 0:03:00]}  c5 {[%clk 0:02:58]} 2. Nf3 {[%clk 0:03:00]}  Nf6 {[%clk 0:02:57]} 3. e5 {[%clk 0:02:59]}  Nd5 {[%clk 0:02:56]} 4. Nc3 {[%clk 0:03:00]}  e6 {[%clk 0:02:56]} 5. Nxd5 {[%clk 0:02:58]}  exd5 {[%clk 0:02:55]} 6. d4 {[%clk 0:02:59]}  Nc6 {[%clk 0:02:54]} 7. Bd3 {[%clk 0:03:00]}  cxd4 {[%clk 0:02:39]} 8. O-O {[%clk 0:02:59]}  Bc5 {[%clk 0:02:37]} 9. Re1 {[%clk 0:02:37]}  h6 {[%clk 0:02:15]} 10. a3 {[%clk 0:02:22]}  a5 {[%clk 0:02:10]} 11. Qd2 {[%clk 0:02:16]}  O-O {[%clk 0:02:08]} 12. Qf4 {[%clk 0:02:08]}  d6 {[%clk 0:02:04]} 13. Qg3 {[%clk 0:01:58]}  dxe5 {[%clk 0:02:00]} 14. Bxh6 {[%clk 0:01:53]}  Qf6 {[%clk 0:01:44]} 15. Bg5 {[%clk 0:01:53]}  Qd6 {[%clk 0:01:43]} 16. Nxe5 {[%clk 0:01:32]}  Nxe5 {[%clk 0:01:42]} 17. Rxe5 {[%clk 0:01:32]}  f6 {[%clk 0:01:18]} 18. Bh6 {[%clk 0:01:31]}  Qc7 {[%clk 0:01:06]} 19. Qg6 {[%clk 0:01:20]}  fxe5 {[%clk 0:01:04]} 20. Qh7+ {[%clk 0:01:18]}  Kf7 {[%clk 0:00:51]} 21. Qxg7+ {[%clk 0:01:18]}  Ke6 {[%clk 0:00:51]} 22. Qxc7 {[%clk 0:01:15]}  Bd6 {[%clk 0:00:48]} 23. Qh7 {[%clk 0:01:01]}  Rf7 {[%clk 0:00:48]} 24. Qg6+ {[%clk 0:00:56]}  Ke7 {[%clk 0:00:47]} 25. Bg5+ {[%clk 0:00:48]}  Ke8 {[%clk 0:00:47]} 26. Bb5+ {[%clk 0:00:47]}  Kf8 {[%clk 0:00:45]} 27. Qxd6+ {[%clk 0:00:44]}  Kg7 {[%clk 0:00:23]} 28. Qh6+ {[%clk 0:00:34]}  Kg8 {[%clk 0:00:22]} 29. Qg6+ {[%clk 0:00:22]}  Rg7 {[%clk 0:00:20]} 30. Qe8+ {[%clk 0:00:20]}  Kh7 {[%clk 0:00:18]} 31. Qxe5 {[%clk 0:00:15]}  Bd7 {[%clk 0:00:10]} 32. Bxd7 {[%clk 0:00:11]}  Rxd7 {[%clk 0:00:10]} 33. Qf5+ {[%clk 0:00:12]}  Kh8 {[%clk 0:00:09]} 34. Qxd7 {[%clk 0:00:12]}  Rf8 {[%clk 0:00:08]} 35. Bh6 {[%clk 0:00:08]}  Rf7 {[%clk 0:00:08]} 36. Qxf7 {[%clk 0:00:07]}  d3 {[%clk 0:00:08]} 37. cxd3 {[%clk 0:00:07]}  d4 {[%clk 0:00:07]} 38. b4 {[%clk 0:00:06]}  axb4 {[%clk 0:00:06]} 39. axb4 {[%clk 0:00:04]}  b5 {[%clk 0:00:07]} 40. Ra8# {[%clk 0:00:03]} 1-0


[Site "https://www.chess.com"]

[Event "Titled Tuesday Blitz November 08 Early 2022"]
[White "Terry, Renato"]
[Black "Nouri, Alekhine"]
[WhiteFideId "3803457"]
[BlackFideId "5216184"]
[WhiteElo "2577"]
[BlackElo "2151"]
[Result "0-1"]
[Round "07"]
[TimeControl "180+1"]
[Date "2022.11.08"]
[WhiteClock "0:00:02"]
[BlackClock "0:01:32"]

1. e4 {[%clk 0:03:00]}  c5 {[%clk 0:02:59]} 2. Nf3 {[%clk 0:03:01]}  d6 {[%clk 0:02:59]} 3. Bb5+ {[%clk 0:03:01]}  Nd7 {[%clk 0:02:59]} 4. d4 {[%clk 0:03:01]}  cxd4 {[%clk 0:03:00]} 5. Qxd4 {[%clk 0:03:02]}  a6 {[%clk 0:03:00]} 6. Bxd7+ {[%clk 0:03:02]}  Bxd7 {[%clk 0:03:01]} 7. Bg5 {[%clk 0:03:03]}  h6 {[%clk 0:03:00]} 8. Bh4 {[%clk 0:03:03]}  Rc8 {[%clk 0:03:01]} 9. O-O {[%clk 0:03:03]}  Qc7 {[%clk 0:02:52]} 10. e5 {[%clk 0:03:02]}  e6 {[%clk 0:02:41]} 11. Nbd2 {[%clk 0:02:44]}  d5 {[%clk 0:02:40]} 12. Nb3 {[%clk 0:02:35]}  Ne7 {[%clk 0:02:38]} 13. Bxe7 {[%clk 0:02:30]}  Bxe7 {[%clk 0:02:39]} 14. c3 {[%clk 0:02:31]}  O-O {[%clk 0:02:37]} 15. a3 {[%clk 0:02:21]}  Bb5 {[%clk 0:02:15]} 16. Rfe1 {[%clk 0:02:17]}  Bc4 {[%clk 0:02:14]} 17. Nfd2 {[%clk 0:02:06]}  b5 {[%clk 0:02:12]} 18. Re3 {[%clk 0:02:00]}  a5 {[%clk 0:02:03]} 19. Rg3 {[%clk 0:02:00]}  a4 {[%clk 0:02:01]} 20. Nc1 {[%clk 0:01:57]}  Bc5 {[%clk 0:01:58]} 21. Qf4 {[%clk 0:01:57]}  Kh8 {[%clk 0:01:53]} 22. Nf3 {[%clk 0:01:17]}  f6 {[%clk 0:01:50]} 23. Qg4 {[%clk 0:00:15]}  fxe5 {[%clk 0:01:37]} 24. Qxe6 {[%clk 0:00:15]}  Rce8 {[%clk 0:01:35]} 25. Qg6 {[%clk 0:00:13]}  e4 {[%clk 0:01:34]} 26. Nd4 {[%clk 0:00:13]}  Bxd4 {[%clk 0:01:34]} 27. cxd4 {[%clk 0:00:14]}  e3 {[%clk 0:01:34]} 28. f3 {[%clk 0:00:03]}  e2 {[%clk 0:01:32]} 29. Nxe2 {[%clk 0:00:04]}  Rxe2 {[%clk 0:01:32]} 30. Rd1 {[%clk 0:00:01]}  Qe7 {[%clk 0:01:32]} 31. Kh1 {[%clk 0:00:02]}  Re1+ {[%clk 0:01:32]} 0-1


[Site "https://www.chess.com"]

[Event "Titled Tuesday Blitz November 08 Early 2022"]
[White "Thiel, Thomas"]
[Black "Garic, Radomir"]
[WhiteFideId "4615964"]
[BlackFideId "920959"]
[WhiteElo "2219"]
[BlackElo "2227"]
[Result "0-1"]
[Round "07"]
[TimeControl "180+1"]
[Date "2022.11.09"]
[WhiteClock "0:00:36"]
[BlackClock "0:00:19"]

1. e4 {[%clk 0:03:00]}  c5 {[%clk 0:02:59]} 2. Nc3 {[%clk 0:02:59]}  Nc6 {[%clk 0:02:59]} 3. Bb5 {[%clk 0:02:58]}  e5 {[%clk 0:02:59]} 4. Nge2 {[%clk 0:02:55]}  Nge7 {[%clk 0:02:57]} 5. Nd5 {[%clk 0:02:52]}  a6 {[%clk 0:02:56]} 6. Bxc6 {[%clk 0:02:47]}  dxc6 {[%clk 0:02:56]} 7. Ne3 {[%clk 0:02:47]}  Ng6 {[%clk 0:02:49]} 8. O-O {[%clk 0:02:44]}  Be7 {[%clk 0:02:47]} 9. d3 {[%clk 0:02:44]}  Bg5 {[%clk 0:02:44]} 10. Ng3 {[%clk 0:02:40]}  Nf4 {[%clk 0:02:35]} 11. Nc4 {[%clk 0:02:33]}  Qe7 {[%clk 0:02:30]} 12. Nf5 {[%clk 0:02:25]}  Bxf5 {[%clk 0:02:29]} 13. exf5 {[%clk 0:02:26]}  b5 {[%clk 0:02:27]} 14. Na5 {[%clk 0:02:22]}  Qc7 {[%clk 0:02:25]} 15. Nb3 {[%clk 0:02:19]}  c4 {[%clk 0:02:09]} 16. dxc4 {[%clk 0:02:17]}  Rd8 {[%clk 0:02:08]} 17. Qg4 {[%clk 0:02:14]}  f6 {[%clk 0:01:59]} 18. cxb5 {[%clk 0:02:12]}  cxb5 {[%clk 0:01:59]} 19. Bxf4 {[%clk 0:02:11]}  Bxf4 {[%clk 0:01:56]} 20. c3 {[%clk 0:02:03]}  O-O {[%clk 0:01:50]} 21. g3 {[%clk 0:01:58]}  Bg5 {[%clk 0:01:47]} 22. a4 {[%clk 0:01:58]}  Rb8 {[%clk 0:01:38]} 23. axb5 {[%clk 0:01:53]}  Rxb5 {[%clk 0:01:38]} 24. Ra3 {[%clk 0:01:29]}  Qb6 {[%clk 0:01:35]} 25. Qa4 {[%clk 0:01:27]}  Rb8 {[%clk 0:01:27]} 26. Na5 {[%clk 0:01:23]}  Qd6 {[%clk 0:00:55]} 27. b4 {[%clk 0:01:19]}  Qd3 {[%clk 0:00:47]} 28. Rd1 {[%clk 0:01:08]}  Qf3 {[%clk 0:00:43]} 29. Qb3+ {[%clk 0:01:06]}  Kh8 {[%clk 0:00:40]} 30. Ra4 {[%clk 0:00:58]}  Be3 {[%clk 0:00:33]} 31. Rf1 {[%clk 0:00:54]}  Rd5 {[%clk 0:00:26]} 32. c4 {[%clk 0:00:49]}  Rd3 {[%clk 0:00:25]} 33. Qc2 {[%clk 0:00:48]}  Rd2 {[%clk 0:00:21]} 34. Qb1 {[%clk 0:00:36]}  Bxf2+ {[%clk 0:00:19]} 0-1


[Site "https://www.chess.com"]

[Event "Titled Tuesday Blitz November 08 Early 2022"]
[White "Tokhirjonova, Gulrukhbegim"]
[Black "Stribuk, Artiom"]
[WhiteFideId "14203626"]
[BlackFideId "13515659"]
[WhiteElo "2236"]
[BlackElo "2371"]
[Result "0-1"]
[Round "07"]
[TimeControl "180+1"]
[Date "2022.11.09"]
[WhiteClock "0:00:21"]
[BlackClock "0:00:13"]

1. e4 {[%clk 0:03:00]}  c5 {[%clk 0:02:59]} 2. Nf3 {[%clk 0:03:00]}  Nc6 {[%clk 0:03:00]} 3. Bb5 {[%clk 0:02:59]}  e6 {[%clk 0:03:00]} 4. O-O {[%clk 0:02:57]}  Nge7 {[%clk 0:03:00]} 5. Re1 {[%clk 0:02:57]}  a6 {[%clk 0:02:59]} 6. Bf1 {[%clk 0:02:58]}  b6 {[%clk 0:02:57]} 7. d4 {[%clk 0:02:58]}  cxd4 {[%clk 0:02:56]} 8. Nxd4 {[%clk 0:02:58]}  Nxd4 {[%clk 0:02:55]} 9. Qxd4 {[%clk 0:02:58]}  Qc7 {[%clk 0:02:56]} 10. c4 {[%clk 0:02:57]}  Nc6 {[%clk 0:02:56]} 11. Qd3 {[%clk 0:02:55]}  h5 {[%clk 0:02:33]} 12. Nc3 {[%clk 0:02:54]}  Ne5 {[%clk 0:02:33]} 13. Qh3 {[%clk 0:02:51]}  Bd6 {[%clk 0:02:15]} 14. f4 {[%clk 0:02:44]}  Ng4 {[%clk 0:02:09]} 15. Nd1 {[%clk 0:02:35]}  Bxf4 {[%clk 0:02:04]} 16. Bxf4 {[%clk 0:02:16]}  Qxf4 {[%clk 0:02:05]} 17. Bd3 {[%clk 0:02:00]}  Bb7 {[%clk 0:02:02]} 18. Rf1 {[%clk 0:01:54]}  Qg5 {[%clk 0:02:02]} 19. Nc3 {[%clk 0:01:47]}  Qc5+ {[%clk 0:02:00]} 20. Kh1 {[%clk 0:01:44]}  Nf2+ {[%clk 0:01:59]} 21. Rxf2 {[%clk 0:01:44]}  Qxf2 {[%clk 0:02:00]} 22. Rf1 {[%clk 0:01:44]}  Qd4 {[%clk 0:01:59]} 23. Qf3 {[%clk 0:01:43]}  O-O-O {[%clk 0:01:48]} 24. Na4 {[%clk 0:01:37]}  f5 {[%clk 0:01:39]} 25. Qe2 {[%clk 0:01:28]}  Bc6 {[%clk 0:01:29]} 26. Nc3 {[%clk 0:01:26]}  fxe4 {[%clk 0:01:27]} 27. Bxe4 {[%clk 0:01:25]}  Rhf8 {[%clk 0:01:25]} 28. Rd1 {[%clk 0:01:25]}  Qf2 {[%clk 0:01:21]} 29. Qd3 {[%clk 0:01:25]}  Qc5 {[%clk 0:01:17]} 30. h3 {[%clk 0:01:24]}  a5 {[%clk 0:01:13]} 31. a3 {[%clk 0:01:23]}  d5 {[%clk 0:00:52]} 32. cxd5 {[%clk 0:01:23]}  exd5 {[%clk 0:00:51]} 33. Bf3 {[%clk 0:01:18]}  Kb7 {[%clk 0:00:46]} 34. b4 {[%clk 0:01:13]}  axb4 {[%clk 0:00:42]} 35. axb4 {[%clk 0:01:14]}  Qc4 {[%clk 0:00:40]} 36. b5 {[%clk 0:01:08]}  Qxd3 {[%clk 0:00:23]} 37. bxc6+ {[%clk 0:01:09]}  Kxc6 {[%clk 0:00:23]} 38. Rxd3 {[%clk 0:01:09]}  Kc5 {[%clk 0:00:22]} 39. Nxd5 {[%clk 0:01:08]}  Rxf3 {[%clk 0:00:19]} 40. Rxf3 {[%clk 0:01:04]}  Rxd5 {[%clk 0:00:20]} 41. Rf7 {[%clk 0:01:04]}  g6 {[%clk 0:00:20]} 42. g4 {[%clk 0:00:58]}  hxg4 {[%clk 0:00:20]} 43. hxg4 {[%clk 0:00:59]}  b5 {[%clk 0:00:20]} 44. Kg2 {[%clk 0:00:59]}  b4 {[%clk 0:00:20]} 45. Rb7 {[%clk 0:00:56]}  g5 {[%clk 0:00:19]} 46. Kf3 {[%clk 0:00:56]}  Re5 {[%clk 0:00:16]} 47. Rb8 {[%clk 0:00:53]}  Kc4 {[%clk 0:00:16]} 48. Rc8+ {[%clk 0:00:46]}  Kd3 {[%clk 0:00:15]} 49. Rb8 {[%clk 0:00:46]}  Kc3 {[%clk 0:00:15]} 50. Rc8+ {[%clk 0:00:46]}  Kb2 {[%clk 0:00:16]} 51. Rf8 {[%clk 0:00:39]}  b3 {[%clk 0:00:12]} 52. Rb8 {[%clk 0:00:31]}  Kc2 {[%clk 0:00:12]} 53. Rc8+ {[%clk 0:00:30]}  Kb1 {[%clk 0:00:13]} 54. Rb8 {[%clk 0:00:30]}  b2 {[%clk 0:00:13]} 55. Kf2 {[%clk 0:00:22]}  Ra5 {[%clk 0:00:13]} 56. Ke3 {[%clk 0:00:21]}  Ka1 {[%clk 0:00:13]} 0-1


[Site "https://www.chess.com"]

[Event "Titled Tuesday Blitz November 08 Early 2022"]
[White "Tuncer, Tuna"]
[Black "Pourkashiyan, Atousa"]
[WhiteFideId "6349269"]
[BlackFideId "12502014"]
[WhiteElo "2216"]
[BlackElo "2247"]
[Result "1-0"]
[Round "07"]
[TimeControl "180+1"]
[Date "2022.11.09"]
[WhiteClock "0:00:03"]
[BlackClock "0:00:08"]

1. d4 {[%clk 0:03:00]}  Nf6 {[%clk 0:02:58]} 2. Bf4 {[%clk 0:03:01]}  d5 {[%clk 0:02:56]} 3. e3 {[%clk 0:03:01]}  c5 {[%clk 0:02:55]} 4. Nf3 {[%clk 0:03:02]}  Nc6 {[%clk 0:02:55]} 5. Nbd2 {[%clk 0:03:02]}  e6 {[%clk 0:02:55]} 6. c3 {[%clk 0:03:02]}  Bd6 {[%clk 0:02:55]} 7. Bg3 {[%clk 0:03:02]}  O-O {[%clk 0:02:56]} 8. Bd3 {[%clk 0:03:01]}  b6 {[%clk 0:02:56]} 9. e4 {[%clk 0:02:53]}  dxe4 {[%clk 0:02:46]} 10. Nxe4 {[%clk 0:02:52]}  Nxe4 {[%clk 0:02:16]} 11. Bxe4 {[%clk 0:02:53]}  Bb7 {[%clk 0:02:16]} 12. Qa4 {[%clk 0:01:58]}  Rc8 {[%clk 0:01:54]} 13. Rd1 {[%clk 0:01:57]}  Bxg3 {[%clk 0:01:32]} 14. hxg3 {[%clk 0:01:45]}  f5 {[%clk 0:01:32]} 15. dxc5 {[%clk 0:01:43]}  Qe7 {[%clk 0:01:25]} 16. Bc2 {[%clk 0:01:26]}  Qxc5 {[%clk 0:01:25]} 17. O-O {[%clk 0:01:03]}  Na5 {[%clk 0:01:01]} 18. Rfe1 {[%clk 0:00:50]}  Nc4 {[%clk 0:00:55]} 19. b4 {[%clk 0:00:27]}  b5 {[%clk 0:00:35]} 20. bxc5 {[%clk 0:00:11]}  bxa4 {[%clk 0:00:36]} 21. Rxe6 {[%clk 0:00:11]}  Rxc5 {[%clk 0:00:32]} 22. Bxa4 {[%clk 0:00:09]}  Nb2 {[%clk 0:00:29]} 23. Bb3 {[%clk 0:00:09]}  Kh8 {[%clk 0:00:16]} 24. Rd7 {[%clk 0:00:06]}  Bc8 {[%clk 0:00:15]} 25. Red6 {[%clk 0:00:02]}  Bxd7 {[%clk 0:00:15]} 26. Rxd7 {[%clk 0:00:03]}  Rxc3 {[%clk 0:00:13]} 27. Ng5 {[%clk 0:00:03]}  h6 {[%clk 0:00:12]} 28. Nf7+ {[%clk 0:00:04]}  Kh7 {[%clk 0:00:12]} 29. Ne5 {[%clk 0:00:04]}  Re8 {[%clk 0:00:11]} 30. f4 {[%clk 0:00:02]}  Rxg3 {[%clk 0:00:11]} 31. Bf7 {[%clk 0:00:02]}  Na4 {[%clk 0:00:09]} 32. Bxe8 {[%clk 0:00:02]}  Nc5 {[%clk 0:00:07]} 33. Re7 {[%clk 0:00:01]}  Ne4 {[%clk 0:00:07]} 34. Bd7 {[%clk 0:00:02]}  Rc3 {[%clk 0:00:06]} 35. Bxf5+ {[%clk 0:00:02]}  Kg8 {[%clk 0:00:07]} 36. Bxe4 {[%clk 0:00:03]}  Rc1+ {[%clk 0:00:07]} 37. Kh2 {[%clk 0:00:03]}  Re1 {[%clk 0:00:08]} 38. Re8# {[%clk 0:00:03]} 1-0


[Site "https://www.chess.com"]

[Event "Titled Tuesday Blitz November 08 Early 2022"]
[White "Turzo, Attila"]
[Black "Sibilio, Mario"]
[WhiteFideId "704954"]
[BlackFideId "800422"]
[WhiteElo "2519"]
[BlackElo "2251"]
[Result "0-1"]
[Round "07"]
[TimeControl "180+1"]
[Date "2022.11.09"]
[WhiteClock "0:00:04"]
[BlackClock "0:00:20"]

1. d4 {[%clk 0:03:00]}  Nf6 {[%clk 0:02:58]} 2. c4 {[%clk 0:03:01]}  e6 {[%clk 0:02:58]} 3. Nf3 {[%clk 0:03:00]}  Bb4+ {[%clk 0:02:55]} 4. Bd2 {[%clk 0:03:00]}  Qe7 {[%clk 0:02:55]} 5. e3 {[%clk 0:03:00]}  O-O {[%clk 0:02:53]} 6. Bd3 {[%clk 0:03:00]}  b6 {[%clk 0:02:50]} 7. O-O {[%clk 0:02:59]}  Bxd2 {[%clk 0:02:43]} 8. Qxd2 {[%clk 0:02:54]}  Bb7 {[%clk 0:02:44]} 9. Nc3 {[%clk 0:02:53]}  d6 {[%clk 0:02:33]} 10. Ng5 {[%clk 0:02:45]}  h6 {[%clk 0:02:27]} 11. Nge4 {[%clk 0:02:45]}  Nxe4 {[%clk 0:02:24]} 12. Nxe4 {[%clk 0:02:45]}  f5 {[%clk 0:02:16]} 13. Nc3 {[%clk 0:02:42]}  Nd7 {[%clk 0:02:17]} 14. e4 {[%clk 0:02:33]}  f4 {[%clk 0:02:14]} 15. b4 {[%clk 0:02:23]}  e5 {[%clk 0:02:13]} 16. d5 {[%clk 0:02:09]}  f3 {[%clk 0:02:10]} 17. g3 {[%clk 0:02:02]}  a5 {[%clk 0:02:03]} 18. a3 {[%clk 0:02:01]}  Nf6 {[%clk 0:02:03]} 19. Rfc1 {[%clk 0:01:51]}  Bc8 {[%clk 0:01:50]} 20. Bf1 {[%clk 0:01:36]}  Qf7 {[%clk 0:01:45]} 21. c5 {[%clk 0:01:35]}  Qh5 {[%clk 0:01:29]} 22. cxd6 {[%clk 0:00:49]}  Bh3 {[%clk 0:01:24]} 23. Qe1 {[%clk 0:00:35]}  Ng4 {[%clk 0:00:58]} 24. Bc4 {[%clk 0:00:20]}  Nxh2 {[%clk 0:00:47]} 25. d7 {[%clk 0:00:19]}  Bg2 {[%clk 0:00:22]} 26. d6+ {[%clk 0:00:17]}  Kh8 {[%clk 0:00:22]} 27. dxc7 {[%clk 0:00:04]}  Ng4 {[%clk 0:00:20]} 0-1


[Site "https://www.chess.com"]

[Event "Titled Tuesday Blitz November 08 Early 2022"]
[White "Vidruska, Renate"]
[Black "Bongo Akanga Ndjila, Barthelemy"]
[WhiteFideId "11601841"]
[BlackFideId "10609431"]
[WhiteElo "1877"]
[BlackElo "1768"]
[Result "0-1"]
[Round "07"]
[TimeControl "180+1"]
[Date "2022.11.09"]
[WhiteClock "0:00:21"]
[BlackClock "0:00:23"]

1. e4 {[%clk 0:02:58]}  c6 {[%clk 0:02:59]} 2. d4 {[%clk 0:02:46]}  d5 {[%clk 0:02:59]} 3. Nc3 {[%clk 0:02:47]}  g6 {[%clk 0:02:56]} 4. e5 {[%clk 0:02:36]}  Bg7 {[%clk 0:02:49]} 5. Nf3 {[%clk 0:01:25]}  Bg4 {[%clk 0:02:44]} 6. h3 {[%clk 0:01:25]}  Bxf3 {[%clk 0:02:43]} 7. Qxf3 {[%clk 0:01:24]}  f6 {[%clk 0:02:44]} 8. Bf4 {[%clk 0:01:21]}  fxe5 {[%clk 0:02:39]} 9. dxe5 {[%clk 0:01:18]}  Nd7 {[%clk 0:02:39]} 10. e6 {[%clk 0:01:14]}  Nc5 {[%clk 0:02:28]} 11. Qe2 {[%clk 0:01:03]}  Qc8 {[%clk 0:02:24]} 12. O-O-O {[%clk 0:01:00]}  Qxe6 {[%clk 0:02:23]} 13. Qxe6 {[%clk 0:01:00]}  Nxe6 {[%clk 0:02:21]} 14. Bd2 {[%clk 0:01:01]}  O-O-O {[%clk 0:02:19]} 15. Bd3 {[%clk 0:00:57]}  Nc5 {[%clk 0:02:18]} 16. Be2 {[%clk 0:00:55]}  e5 {[%clk 0:02:17]} 17. h4 {[%clk 0:00:53]}  d4 {[%clk 0:02:17]} 18. Nb1 {[%clk 0:00:51]}  e4 {[%clk 0:02:16]} 19. Bg4+ {[%clk 0:00:52]}  Kc7 {[%clk 0:02:14]} 20. Bf4+ {[%clk 0:00:52]}  Kb6 {[%clk 0:02:13]} 21. Na3 {[%clk 0:00:49]}  d3 {[%clk 0:02:06]} 22. Nc4+ {[%clk 0:00:46]}  Kb5 {[%clk 0:02:04]} 23. Nd6+ {[%clk 0:00:46]}  Ka6 {[%clk 0:01:57]} 24. Nf7 {[%clk 0:00:42]}  Nf6 {[%clk 0:01:57]} 25. Bh3 {[%clk 0:00:34]}  Nh5 {[%clk 0:01:51]} 26. Be3 {[%clk 0:00:32]}  Na4 {[%clk 0:01:45]} 27. Nxd8 {[%clk 0:00:19]}  Bxb2+ {[%clk 0:01:42]} 28. Kb1 {[%clk 0:00:19]}  Rxd8 {[%clk 0:01:40]} 29. cxd3 {[%clk 0:00:19]}  exd3 {[%clk 0:01:38]} 30. g4 {[%clk 0:00:19]}  Ng7 {[%clk 0:01:36]} 31. Bf1 {[%clk 0:00:20]}  b5 {[%clk 0:01:09]} 32. Bxd3 {[%clk 0:00:20]}  Bf6 {[%clk 0:01:05]} 33. Kc2 {[%clk 0:00:20]}  c5 {[%clk 0:01:01]} 34. g5 {[%clk 0:00:21]}  Be7 {[%clk 0:01:00]} 35. Bxb5+ {[%clk 0:00:21]}  Kxb5 {[%clk 0:00:59]} 36. Rxd8 {[%clk 0:00:22]}  Bxd8 {[%clk 0:00:59]} 37. Rb1+ {[%clk 0:00:23]}  Kc6 {[%clk 0:00:59]} 38. Rd1 {[%clk 0:00:23]}  Ba5 {[%clk 0:00:55]} 39. Kb3 {[%clk 0:00:24]}  Nb6 {[%clk 0:00:53]} 40. Rd8 {[%clk 0:00:24]}  Nf5 {[%clk 0:00:52]} 41. Rh8 {[%clk 0:00:23]}  Nxh4 {[%clk 0:00:51]} 42. Rxh7 {[%clk 0:00:23]}  Nf5 {[%clk 0:00:49]} 43. Rh8 {[%clk 0:00:24]}  Nxe3 {[%clk 0:00:48]} 44. fxe3 {[%clk 0:00:25]}  Bd2 {[%clk 0:00:48]} 45. Rf8 {[%clk 0:00:25]}  Bxe3 {[%clk 0:00:47]} 46. Rf6+ {[%clk 0:00:25]}  Kd5 {[%clk 0:00:44]} 47. Rxg6 {[%clk 0:00:26]}  c4+ {[%clk 0:00:45]} 48. Kc2 {[%clk 0:00:26]}  Nd7 {[%clk 0:00:40]} 49. Rg7 {[%clk 0:00:27]}  Ne5 {[%clk 0:00:40]} 50. Rc7 {[%clk 0:00:26]}  Bxg5 {[%clk 0:00:39]} 51. Rxa7 {[%clk 0:00:25]}  Nc6 {[%clk 0:00:34]} 52. Rd7+ {[%clk 0:00:25]}  Kc5 {[%clk 0:00:33]} 53. Rh7 {[%clk 0:00:23]}  Nb4+ {[%clk 0:00:32]} 54. Kb1 {[%clk 0:00:24]}  c3 {[%clk 0:00:31]} 55. a3 {[%clk 0:00:24]}  c2+ {[%clk 0:00:29]} 56. Kb2 {[%clk 0:00:20]}  c1=Q+ {[%clk 0:00:29]} 57. Kb3 {[%clk 0:00:21]}  Qc2# {[%clk 0:00:23]} 0-1


[Site "https://www.chess.com"]